bitfinex/quotes_SOLUSD_20250204
["timestamp","ask_amount","ask_price","bid_price","bid_amount"]
[1738643804802,20.0,214.87,214.79,23.02233933]
[1738643805014,23.02233933,214.86,214.78,0.063]
[1738643806443,23.02233933,214.86,214.79,23.02233933]
[1738643806729,23.02233933,214.9,214.81,23.02233933]
[1738643806928,23.02233933,214.88,214.81,23.02233933]
[1738643808136,23.02233933,214.93,214.85,20.0]
[1738643808305,24.02233933,215.0,214.91,23.02233933]
[1738643808632,136.2,214.99,214.91,23.02233933]
[1738643809012,23.02233933,215.0,214.91,23.02233933]
[1738643809211,20.0,214.99,214.93,23.02233933]
[1738643809811,23.02233933,215.04,214.95,23.02233933]
[1738643810011,159.22233933,215.06,214.97,23.02233933]
[1738643810211,23.02233933,215.06,214.99,23.02233933]
[1738643810413,20.0,215.05,214.99,23.02233933]
[1738643810616,23.05233933,215.08,214.99,23.02233933]
[1738643811260,0.03,215.08,215.01,23.02233933]
[1738643811628,23.05233933,215.08,214.99,23.02233933]
[1738643811837,23.05233933,215.08,214.99,27.67363933]
[1738643812018,23.05233933,215.08,215.01,23.02233933]
[1738643812019,0.03,215.08,215.01,23.02233933]
[1738643812827,0.03,215.08,215.03,23.02233933]
[1738643813136,0.03,215.08,215.01,23.02233933]
[1738643813522,0.03,215.08,215.03,23.02233933]
[1738643814159,0.03,215.08,215.05,23.02233933]
[1738643814942,0.03,215.08,215.07,23.02233933]
[1738643815322,0.03,215.08,215.05,23.02233933]
[1738643817826,0.03,215.08,215.01,0.12549]
[1738643817827,0.03,215.08,215.01,23.02233933]
[1738643818019,0.03,215.08,215.03,23.02233933]
[1738643818214,0.03,215.08,215.0,13.66282853]
[1738643818447,0.03,215.08,215.05,23.02233933]
[1738643819548,0.03,215.08,215.05,27.67223933]
[1738643820164,0.03,215.08,215.07,23.02233933]
[1738643820785,0.03,215.08,215.07,36.55967786]
[1738643820925,0.03,215.08,215.07,36.68516786]
[1738643822052,0.03,215.08,215.07,41.33476786]
[1738643822548,0.03,215.08,215.07,23.02233933]
[1738643822915,0.03,215.08,215.07,36.55967786]
[1738643823827,0.063,215.14,215.11,20.12549]
[1738643824153,0.063,215.14,215.13,36.68516786]
[1738643824452,0.063,215.14,215.13,59.70750719]
[1738643825366,0.063,215.14,215.13,64.35580719]
[1738643825522,0.063,215.14,215.13,41.20797786]
[1738643825846,0.063,215.14,215.13,36.43418786]
[1738643826184,0.063,215.14,215.09,23.02233933]
[1738643826345,0.063,215.14,215.07,23.02233933]
[1738643827473,23.08533933,215.14,215.05,23.02233933]
[1738643827947,23.02233933,215.12,215.03,23.02233933]
[1738643828247,23.02233933,215.1,215.01,23.02233933]
[1738643828441,23.02233933,215.1,215.03,23.02233933]
[1738643828637,23.02233933,215.1,215.01,23.02233933]
[1738643828958,23.02233933,215.1,215.05,0.063]
[1738643829648,23.02233933,215.06,215.05,0.063]
[1738643830041,23.08533933,215.14,215.05,0.063]
[1738643830265,0.063,215.14,215.06,23.02233933]
[1738643830430,0.063,215.14,215.08,23.02233933]
[1738643832043,23.08533933,215.14,215.06,23.02233933]
[1738643832251,0.063,215.14,215.06,23.02233933]
[1738643833366,0.063,215.14,215.05,0.063]
[1738643833367,23.02233933,215.1,215.05,0.063]
[1738643833600,23.02233933,215.08,215.05,0.063]
[1738643833863,23.02233933,215.06,215.05,0.063]
[1738643835358,23.14782933,215.06,215.05,0.063]
[1738643835573,128.39565866,215.06,215.05,0.063]
[1738643835784,104.37331933,215.06,215.05,0.063]
[1738643836063,104.12233933,215.06,215.05,0.063]
[1738643836367,23.02233933,215.1,215.05,0.063]
[1738643837744,23.02233933,215.06,215.05,0.063]
[1738643838049,24.02233933,215.1,215.05,0.063]
[1738643838859,159.22233933,215.12,215.05,0.063]
[1738643839163,0.063,215.14,215.08,23.02233933]
[1738643839342,0.063,215.14,215.1,23.02233933]
[1738643840362,0.063,215.14,215.08,23.02233933]
[1738643840559,0.03,215.12,215.06,23.02233933]
[1738643840736,0.03,215.12,215.05,0.063]
[1738643841248,0.03,215.12,215.06,23.02233933]
[1738643841765,0.03,215.12,215.05,0.063]
[1738643842783,0.15549,215.12,215.05,0.063]
[1738643842974,23.02233933,215.09,215.05,0.063]
[1738643843764,136.2,215.11,215.06,23.02233933]
[1738643844161,136.2,215.11,215.05,0.063]
[1738643844466,23.02233933,215.09,215.05,0.063]
[1738643844652,23.02233933,215.07,215.05,0.063]
[1738643844971,217.55098,215.06,215.05,0.063]
[1738643845148,37.68516786,215.06,215.05,0.063]
[1738643845341,20.0,215.03,214.9,23.02233933]
[1738643845546,23.02233933,215.0,214.9,23.02233933]
[1738643845854,136.2,215.02,214.9,23.02233933]
[1738643846067,23.02233933,214.96,214.88,23.02233933]
[1738643846278,23.02233933,214.94,214.86,23.02233933]
[1738643846455,23.02233933,214.92,214.84,23.02233933]
[1738643848004,136.2,214.95,214.9,23.02233933]
[1738643848209,136.2,214.95,214.85,4.6542]
[1738643848210,136.2,214.95,214.88,23.02233933]
[1738643850702,23.02233933,214.98,214.88,27.67593933]
[1738643851001,23.02233933,214.98,214.9,23.02233933]
[1738643851369,104.12233933,215.0,214.92,23.02233933]
[1738643852708,23.02233933,214.94,214.86,23.02233933]
[1738643852865,23.02233933,214.92,214.84,23.02233933]
[1738643853071,20.0,214.95,214.9,23.02233933]
[1738643853291,23.02233933,214.98,214.9,23.02233933]
[1738643854854,23.02233933,214.96,214.88,23.08533933]
[1738643855419,23.02233933,214.94,214.88,0.063]
[1738643855703,23.02233933,214.9,214.88,0.063]
[1738643857399,0.12549,214.89,214.88,0.063]
[1738643857570,1.25098,214.89,214.88,0.063]
[1738643857789,23.02233933,214.9,214.88,0.063]
[1738643859808,23.02233933,214.92,214.88,0.063]
[1738643860204,159.22233933,214.92,214.88,0.063]
[1738643862032,23.02233933,214.9,214.88,0.063]
[1738643862396,24.02233933,214.9,214.88,0.063]
[1738643862928,136.45098,214.89,214.88,0.063]
[1738643863133,13.66282853,214.89,214.88,0.063]
[1738643865095,14.66282853,214.89,214.88,0.063]
[1738643865531,14.66282853,214.89,214.78,0.063]
[1738643865532,0.12549,214.83,214.78,0.063]
[1738643865699,23.02233933,214.8,214.78,0.063]
[1738643867240,0.12549,214.79,214.78,0.063]
[1738643867527,15.66282853,214.79,214.78,0.063]
[1738643867890,14.66282853,214.79,214.78,0.063]
[1738643868094,15.66282853,214.79,214.78,0.063]
[1738643868330,33.66282853,214.76,214.72,0.063]
[1738643868538,24.20094199,214.8,214.72,0.063]
[1738643868539,43.27331933,214.73,214.72,0.063]
[1738643868908,80.70750719,214.73,214.72,0.063]
[1738643869235,1.0,214.68,214.66,0.063]
[1738643869439,36.68516786,214.67,214.66,0.063]
[1738643870531,22.0,214.65,214.64,0.063]
[1738643870735,25.02233933,214.65,214.64,0.063]
[1738643871141,24.02233933,214.65,214.64,0.063]
[1738643871319,25.02233933,214.65,214.64,0.063]
[1738643872429,25.27331933,214.65,214.64,0.063]
[1738643873340,24.27331933,214.65,214.64,0.063]
[1738643873500,37.68516786,214.65,214.64,0.063]
[1738643874244,24.27331933,214.65,214.64,0.063]
[1738643874603,23.02233933,214.65,214.64,0.063]
[1738643874799,23.02233933,214.67,214.64,0.063]
[1738643875214,81.1,214.69,214.64,0.063]
[1738643875215,104.12233933,214.69,214.64,0.063]
[1738643876923,23.02233933,214.67,214.64,0.063]
[1738643877423,104.12233933,214.69,214.64,0.063]
[1738643877627,81.1,214.69,214.64,0.063]
[1738643877817,20.0,214.68,214.64,0.063]
[1738643878706,1.0,214.77,214.66,23.02233933]
[1738643878707,23.02233933,214.75,214.66,23.02233933]
[1738643879120,23.02233933,214.75,214.64,0.063]
[1738643879121,23.02233933,214.73,214.64,23.08533933]
[1738643879315,23.02233933,214.71,214.64,0.063]
[1738643879625,23.02233933,214.71,214.64,23.08533933]
[1738643880133,23.02233933,214.77,214.65,13.41184853]
[1738643880367,81.1,214.78,214.7,23.02233933]
[1738643880642,23.02233933,214.77,214.7,23.02233933]
[1738643880812,23.02233933,214.77,214.68,23.02233933]
[1738643881336,23.02233933,214.77,214.64,0.31398]
[1738643881337,23.02233933,214.73,214.66,23.02233933]
[1738643881648,23.02233933,214.73,214.64,23.08533933]
[1738643881834,23.02233933,214.75,214.68,23.02233933]
[1738643882228,23.02233933,214.75,214.66,23.02233933]
[1738643882229,43.02233933,214.75,214.66,23.02233933]
[1738643883137,23.02233933,214.77,214.68,23.02233933]
[1738643883351,81.1,214.78,214.7,23.02233933]
[1738643883545,136.2,214.79,214.73,6.4879]
[1738643883842,23.02233933,214.83,214.76,23.02233933]
[1738643884159,23.02233933,214.81,214.74,23.02233933]
[1738643884370,23.02233933,214.79,214.73,6.4879]
[1738643884567,23.02233933,214.79,214.67,6.4879]
[1738643884568,20.0,214.74,214.67,6.4879]
[1738643884744,23.02233933,214.73,214.67,6.4879]
[1738643887192,23.02233933,214.75,214.68,23.02233933]
[1738643887354,23.02233933,214.75,214.67,6.4879]
[1738643887671,23.02233933,214.73,214.67,6.4879]
[1738643887906,23.02233933,214.68,214.64,0.063]
[1738643888679,136.2,214.71,214.64,23.08533933]
[1738643888889,23.02233933,214.68,214.64,0.063]
[1738643889065,23.02233933,214.66,214.64,0.063]
[1738643889562,23.02233933,214.68,214.64,0.063]
[1738643889963,136.2,214.69,214.64,0.063]
[1738643890171,23.02233933,214.68,214.64,0.063]
[1738643890561,43.02233933,214.66,214.64,0.063]
[1738643890879,136.2,214.65,214.64,0.063]
[1738643891085,43.02233933,214.66,214.64,0.063]
[1738643891900,149.86282853,214.65,214.64,0.063]
[1738643892214,13.66282853,214.65,214.64,0.063]
[1738643893202,33.66282853,214.65,214.64,0.063]
[1738643893519,13.66282853,214.65,214.64,0.063]
[1738643893676,14.66282853,214.65,214.64,0.063]
[1738643894075,35.66282853,214.63,214.62,0.063]
[1738643894391,15.66282853,214.61,214.6,0.03]
[1738643894592,36.68516786,214.61,214.6,0.03]
[1738643894794,37.68516786,214.61,214.6,0.03]
[1738643895093,61.70750719,214.61,214.6,0.03]
[1738643896197,21.0,214.57,214.56,0.063]
[1738643896487,13.66282853,214.54,214.5,0.063]
[1738643896699,43.02233933,214.51,214.5,0.063]
[1738643896896,43.27331933,214.51,214.5,0.063]
[1738643897713,79.70750719,214.51,214.5,0.063]
[1738643897915,79.70750719,214.51,214.46,0.063]
[1738643897916,0.25098,214.5,214.46,0.063]
[1738643898072,43.27331933,214.47,214.46,0.063]
[1738643898391,43.02233933,214.47,214.46,0.063]
[1738643898575,23.02233933,214.47,214.46,0.063]
[1738643898775,43.27331933,214.47,214.46,0.063]
[1738643899211,56.68516786,214.47,214.46,0.063]
[1738643899418,36.68516786,214.47,214.46,0.063]
[1738643900202,1.25098,214.45,214.44,0.063]
[1738643900427,24.27331933,214.45,214.44,0.063]
[1738643902827,21.25098,214.43,214.38,0.03]
[1738643903016,43.27331933,214.43,214.38,0.03]
[1738643903704,56.68516786,214.43,214.38,0.03]
[1738643904522,43.02233933,214.43,214.38,0.03]
[1738643904712,23.02233933,214.45,214.38,0.03]
[1738643905532,81.1,214.46,214.39,23.02233933]
[1738643905750,23.02233933,214.48,214.4,23.02233933]
[1738643906067,23.02233933,214.52,214.45,23.02233933]
[1738643906200,26.56233933,214.53,214.46,23.02233933]
[1738643906404,23.02233933,214.51,214.43,23.02233933]
[1738643906627,23.02233933,214.51,214.43,27.68573933]
[1738643906813,23.02233933,214.51,214.43,23.02233933]
[1738643909335,159.22233933,214.53,214.45,23.02233933]
[1738643909634,159.22233933,214.53,214.42,8.0254]
[1738643909635,136.2,214.53,214.47,23.02233933]
[1738643910014,0.25098,214.6,214.49,23.02233933]
[1738643910015,23.02233933,214.57,214.49,23.02233933]
[1738643910478,23.02233933,214.53,214.45,23.02233933]
[1738643910621,23.02233933,214.53,214.42,8.0254]
[1738643910622,23.02233933,214.46,214.42,8.0254]
[1738643910949,23.02233933,214.44,214.42,0.063]
[1738643911126,159.22233933,214.44,214.42,0.063]
[1738643911911,23.02233933,214.44,214.42,0.063]
[1738643912214,136.2,214.43,214.42,0.063]
[1738643912406,13.66282853,214.43,214.42,0.063]
[1738643914260,94.76282853,214.43,214.42,0.063]
[1738643916545,23.02233933,214.44,214.42,0.063]
[1738643916844,14.66282853,214.43,214.42,0.063]
[1738643919540,13.66282853,214.43,214.42,0.063]
[1738643920471,0.25098,214.43,214.42,0.063]
[1738643922055,37.68516786,214.43,214.42,0.063]
[1738643922362,13.41184853,214.39,214.31,6.2103]
[1738643922528,60.45652719,214.39,214.29,1.5207]
[1738643922731,60.70750719,214.39,214.29,1.5207]
[1738643923043,20.0,214.32,214.26,6.0334]
[1738643923239,23.02233933,214.28,214.26,6.0334]
[1738643923658,23.02233933,214.28,214.24,0.063]
[1738643923964,23.02233933,214.29,214.24,0.063]
[1738643924345,20.0,214.32,214.24,0.063]
[1738643924346,23.02233933,214.33,214.24,23.08533933]
[1738643924738,26.56233933,214.36,214.27,23.02233933]
[1738643924945,23.02233933,214.36,214.29,23.02233933]
[1738643925147,23.02233933,214.34,214.26,23.02233933]
[1738643925540,23.02233933,214.32,214.24,23.08533933]
[1738643925944,23.02233933,214.29,214.24,0.063]
[1738643926229,23.02233933,214.27,214.24,0.063]
[1738643926538,23.02233933,214.26,214.24,0.063]
[1738643926781,23.02233933,214.25,214.24,0.063]
[1738643926951,23.02233933,214.26,214.24,0.063]
[1738643929876,136.2,214.3,214.25,23.02233933]
[1738643930037,136.2,214.3,214.27,23.02233933]
[1738643930234,136.2,214.33,214.27,23.02233933]
[1738643930547,159.22233933,214.37,214.3,23.02233933]
[1738643930754,20.0,214.34,214.3,23.02233933]
[1738643931857,20.0,214.28,214.24,0.063]
[1738643932082,23.02233933,214.25,214.24,0.063]
[1738643932760,37.68516786,214.25,214.24,0.063]
[1738643933351,20.25098,214.21,214.2,0.03]
[1738643933557,43.27331933,214.21,214.2,0.03]
[1738643934287,43.02233933,214.21,214.2,0.03]
[1738643934670,20.0,214.21,214.2,0.03]
[1738643934860,23.02233933,214.23,214.2,0.03]
[1738643937661,20.0,214.21,214.2,0.03]
[1738643939101,23.02233933,214.25,214.2,0.03]
[1738643939393,20.0,214.24,214.2,0.03]
[1738643939694,23.02233933,214.29,214.2,23.05233933]
[1738643940288,172.63418786,214.31,214.22,23.02233933]
[1738643940612,136.2,214.33,214.26,23.02233933]
[1738643940801,20.0,214.31,214.26,23.02233933]
[1738643940968,156.45098,214.3,214.22,23.02233933]
[1738643941170,23.02233933,214.29,214.2,29.65553933]
[1738643941406,159.22233933,214.33,214.26,23.02233933]
[1738643941581,23.02233933,214.27,214.2,29.65553933]
[1738643941782,23.02233933,214.25,214.2,6.6332]
[1738643941982,0.25098,214.24,214.2,0.03]
[1738643943602,23.02233933,214.27,214.2,0.03]
[1738643943901,20.0,214.24,214.2,0.03]
[1738643944071,0.25098,214.24,214.2,0.03]
[1738643944273,20.0,214.22,214.2,0.03]
[1738643947689,0.25098,214.21,214.2,0.03]
[1738643947897,20.0,214.22,214.2,0.03]
[1738643948998,36.68516786,214.21,214.2,0.03]
[1738643949704,36.68516786,214.16,214.15,0.03]
[1738643950502,13.66282853,214.16,214.15,0.03]
[1738643951613,23.02233933,214.17,214.15,0.03]
[1738643952106,13.66282853,214.16,214.15,0.03]
[1738643954502,23.02233933,214.17,214.15,0.03]
[1738643954807,159.22233933,214.23,214.15,0.03]
[1738643954979,136.2,214.22,214.15,0.03]
[1738643955186,136.2,214.22,214.18,23.02233933]
[1738643955386,136.2,214.24,214.18,23.02233933]
[1738643955633,20.0,214.21,214.18,23.02233933]
[1738643955842,136.2,214.24,214.18,23.02233933]
[1738643957229,81.1,214.28,214.2,23.02233933]
[1738643957230,136.2,214.26,214.2,23.02233933]
[1738643957439,136.2,214.28,214.24,23.02233933]
[1738643957609,136.2,214.28,214.22,23.02233933]
[1738643957811,43.02233933,214.27,214.18,23.02233933]
[1738643957998,23.02233933,214.29,214.22,23.02233933]
[1738643958329,136.2,214.28,214.22,23.02233933]
[1738643958921,23.02233933,214.27,214.18,23.02233933]
[1738643959224,20.0,214.22,214.17,6.5034]
[1738643959427,23.02233933,214.21,214.15,0.03]
[1738643959638,20.0,214.16,214.15,0.03]
[1738643959796,23.02233933,214.17,214.15,0.03]
[1738643960214,13.66282853,214.16,214.15,0.03]
[1738643964797,14.66282853,214.16,214.15,0.03]
[1738643965805,33.66282853,214.13,214.02,0.063]
[1738643966007,23.02233933,214.04,214.02,0.063]
[1738643966231,20.25098,214.01,214.0,427.67245639]
[1738643966477,56.68516786,214.01,214.0,418.32474269]
[1738643967326,56.68516786,214.01,214.0,382.27474269]
[1738643969102,33.66282853,214.01,214.0,382.27474269]
[1738643969646,20.0,214.01,214.0,382.27474269]
[1738643970139,56.68516786,214.01,214.0,382.27474269]
[1738643971503,56.43418786,214.01,214.0,382.27474269]
[1738643972206,23.02233933,214.03,214.0,382.27474269]
[1738643972937,43.02233933,214.01,214.0,382.27474269]
[1738643973139,56.68516786,214.01,214.0,382.27474269]
[1738643973813,20.0,214.01,214.0,382.27474269]
[1738643975403,3.79098,214.07,214.0,382.27474269]
[1738643975404,26.56233933,214.07,214.0,382.33774269]
[1738643975614,0.03,214.01,214.0,382.33774269]
[1738643977039,23.30331933,214.01,214.0,382.33774269]
[1738643977535,23.05233933,214.01,214.0,382.33774269]
[1738643977716,0.03,214.01,214.0,382.33774269]
[1738643980546,23.05233933,214.01,214.0,382.33774269]
[1738643980730,23.30331933,214.01,214.0,382.33774269]
[1738643981427,0.03,214.01,214.0,382.33774269]
[1738643981929,0.03,214.01,214.0,405.36008202]
[1738643982615,136.2,214.11,214.01,11.2365]
[1738643982811,23.02233933,214.11,214.03,23.02233933]
[1738643983115,20.0,214.06,214.01,29.58623933]
[1738643983423,43.02233933,214.05,214.01,6.5639]
[1738643983624,20.0,214.05,214.01,6.5639]
[1738643984050,20.0,214.04,214.01,6.5639]
[1738643984547,20.0,214.04,214.0,382.33774269]
[1738643984748,23.02233933,214.05,214.0,382.33774269]
[1738643985043,20.0,214.07,214.0,382.33774269]
[1738643985044,20.0,214.06,214.0,382.33774269]
[1738643985551,20.0,214.02,214.0,382.33774269]
[1738643988476,20.0,214.01,214.0,382.33774269]
[1738643989662,20.0,214.02,214.0,382.33774269]
[1738643990934,20.0,214.01,214.0,382.33774269]
[1738643992521,136.2,214.04,214.0,382.33774269]
[1738643992761,136.2,214.04,214.02,23.02233933]
[1738643992951,136.2,214.09,214.02,23.02233933]
[1738643993157,136.2,214.08,214.02,23.02233933]
[1738643993479,136.2,214.08,214.02,22.97713743]
[1738643993816,136.2,214.09,214.02,22.97713743]
[1738643994164,13.41184853,214.13,214.0,382.33774269]
[1738643994165,23.02233933,214.06,214.0,382.33774269]
[1738643994350,20.0,214.03,214.0,382.33774269]
[1738643994549,23.02233933,214.02,214.0,382.33774269]
[1738643995950,20.0,214.01,214.0,382.33774269]
[1738643996152,136.2,214.03,214.0,382.33774269]
[1738643998582,159.22233933,214.02,214.0,382.33774269]
[1738643998886,136.2,214.01,214.0,382.33774269]
[1738644000555,13.41184853,214.01,214.0,382.33774269]
[1738644001779,23.02233933,214.02,214.0,382.33774269]
[1738644002338,14.66282853,214.01,214.0,209.60941291]
[1738644002493,14.66282853,214.01,214.0,192.04241291]
[1738644002696,14.66282853,214.01,214.0,178.60241291]
[1738644002908,68.91090719,214.01,214.0,17.98794252]
[1738644003071,35.66282853,213.99,213.98,0.063]
[1738644003398,13.66282853,213.96,213.95,0.063]
[1738644003708,13.66282853,213.96,213.77,1.0]
[1738644003709,20.0,213.93,213.77,24.02233933]
[1738644003875,23.02233933,213.84,213.76,7.2345456]
[1738644004079,0.25098,213.92,213.77,23.02233933]
[1738644004080,23.02233933,213.86,213.77,23.02233933]
[1738644004664,23.02233933,213.86,213.79,23.02233933]
[1738644004894,23.02233933,213.91,213.83,23.02233933]
[1738644005071,20.0,213.88,213.83,23.02233933]
[1738644005266,20.0,213.88,213.77,4.6778]
[1738644005267,23.02233933,213.87,213.79,23.02233933]
[1738644005783,23.02233933,213.85,213.77,23.02233933]
[1738644006495,20.0,213.87,213.82,23.02233933]
[1738644006664,20.0,213.87,213.86,23.02233933]
[1738644007184,20.0,213.91,213.84,23.02233933]
[1738644008389,20.0,213.87,213.82,23.02233933]
[1738644008877,20.0,213.85,213.8,23.02233933]
[1738644009081,23.02233933,213.86,213.78,23.08533933]
[1738644009395,20.0,213.85,213.8,23.02233933]
[1738644009569,23.02233933,213.92,213.84,23.02233933]
[1738644009791,159.22233933,213.94,213.86,23.02233933]
[1738644010083,136.2,213.93,213.86,23.02233933]
[1738644010288,20.0,213.89,213.84,23.02233933]
[1738644010470,20.0,213.89,213.82,23.02233933]
[1738644011105,23.02233933,213.88,213.8,23.02233933]
[1738644011265,20.0,213.85,213.8,23.02233933]
[1738644011466,23.02233933,213.86,213.78,23.08533933]
[1738644011938,20.0,213.83,213.78,23.08533933]
[1738644012119,20.0,213.79,213.78,0.063]
[1738644013673,26.56233933,213.84,213.78,0.063]
[1738644014180,20.0,213.81,213.78,0.063]
[1738644015407,23.02233933,213.8,213.78,0.063]
[1738644016795,23.02233933,213.84,213.78,0.063]
[1738644018012,20.0,213.83,213.78,23.08533933]
[1738644018308,20.0,213.83,213.8,23.02233933]
[1738644018521,20.0,213.85,213.8,23.02233933]
[1738644018823,43.02233933,213.85,213.78,23.08533933]
[1738644021319,20.0,213.84,213.78,23.08533933]
[1738644022379,43.02233933,213.85,213.78,23.08533933]
[1738644022675,43.02233933,213.85,213.78,0.063]
[1738644023836,159.22233933,213.87,213.8,23.02233933]
[1738644024018,20.0,213.84,213.8,23.02233933]
[1738644024648,20.0,213.84,213.8,27.69933933]
[1738644025332,20.0,213.84,213.8,23.02233933]
[1738644025512,20.0,213.84,213.78,27.76293933]
[1738644027641,20.0,213.84,213.8,23.02233933]
[1738644028135,20.0,213.84,213.78,23.08533933]
[1738644029838,20.0,213.79,213.78,0.063]
[1738644030331,20.0,213.8,213.78,0.063]
[1738644031137,14.43005995,213.83,213.78,0.063]
[1738644031451,14.43005995,213.87,213.79,14.43005995]
[1738644032141,14.43005995,213.83,213.78,0.063]
[1738644033001,20.0,213.8,213.78,0.063]
[1738644033355,20.0,213.79,213.78,0.063]
[1738644033507,34.43005995,213.79,213.78,0.063]
[1738644034215,20.0,213.79,213.78,0.063]
[1738644034472,14.43005995,213.85,213.78,0.063]
[1738644034619,14.43005995,213.83,213.78,0.063]
[1738644034817,14.43005995,213.81,213.78,0.063]
[1738644035135,34.43005995,213.79,213.78,0.063]
[1738644037202,48.09288848,213.79,213.78,0.063]
[1738644037918,34.55554995,213.79,213.78,0.063]
[1738644038322,34.68103995,213.79,213.78,0.063]
[1738644038522,34.55554995,213.79,213.78,0.063]
[1738644040246,34.68103995,213.79,213.78,0.063]
[1738644041448,34.55554995,213.79,213.78,0.063]
[1738644042945,34.68103995,213.79,213.78,0.063]
[1738644043445,34.55554995,213.79,213.78,0.063]
[1738644043949,14.43005995,213.81,213.78,0.063]
[1738644044149,136.2,213.82,213.78,0.063]
[1738644044508,20.0,213.79,213.78,0.063]
[1738644048256,136.2,213.84,213.78,14.49305995]
[1738644048428,136.2,213.87,213.8,14.43005995]
[1738644048757,20.0,213.84,213.78,14.49305995]
[1738644049155,14.43005995,213.85,213.78,14.49305995]
[1738644049642,14.43005995,213.85,213.78,0.063]
[1738644050162,20.0,213.8,213.78,0.063]
[1738644050531,14.43005995,213.85,213.78,0.063]
[1738644050960,20.0,213.82,213.78,0.063]
[1738644052334,150.63005995,213.87,213.78,14.49305995]
[1738644052667,150.63005995,213.87,213.8,14.43005995]
[1738644052957,20.0,213.84,213.78,14.49305995]
[1738644053467,20.0,213.83,213.78,19.17065995]
[1738644054071,20.0,213.83,213.78,14.49305995]
[1738644054644,156.2,213.82,213.78,0.063]
[1738644055775,136.2,213.82,213.8,14.43005995]
[1738644056367,136.2,213.82,213.78,14.49305995]
[1738644057070,136.2,213.82,213.78,0.063]
[1738644057457,136.2,213.82,213.78,14.49305995]
[1738644058674,136.2,213.82,213.78,19.17065995]
[1738644058853,136.2,213.88,213.8,19.10725995]
[1738644059038,14.43005995,213.87,213.8,14.43005995]
[1738644059237,14.43005995,213.87,213.78,14.49305995]
[1738644060378,14.43005995,213.85,213.78,14.49305995]
[1738644060766,14.43005995,213.87,213.8,14.43005995]
[1738644062066,20.0,213.82,213.78,0.063]
[1738644062754,136.2,213.88,213.8,14.43005995]
[1738644062988,14.43005995,213.87,213.8,14.43005995]
[1738644063194,136.2,213.88,213.8,19.10725995]
[1738644063357,136.2,213.88,213.8,14.43005995]
[1738644063864,136.2,213.91,213.84,14.43005995]
[1738644064287,14.43005995,213.89,213.81,14.43005995]
[1738644064881,20.0,213.88,213.83,14.43005995]
[1738644065290,136.2,213.91,213.85,14.43005995]
[1738644065682,136.2,213.94,213.87,14.43005995]
[1738644066569,136.2,213.94,213.89,14.43005995]
[1738644067062,136.2,213.94,213.88,1.8975]
[1738644067280,0.03,213.95,213.91,14.43005995]
[1738644067601,0.03,213.95,213.93,14.43005995]
[1738644067799,0.03,213.95,213.94,13.41184853]
[1738644067966,0.03,214.01,213.99,14.43005995]
[1738644068397,0.03,214.01,213.95,16.47025995]
[1738644068576,0.03,214.01,213.97,14.43005995]
[1738644068908,0.03,214.01,213.99,14.43005995]
[1738644069909,156.2,214.0,213.95,2.0402]
[1738644070091,14.43005995,213.99,213.86,5.6757]
[1738644070290,14.43005995,213.97,213.89,14.43005995]
[1738644071279,136.2,213.98,213.91,14.43005995]
[1738644071497,0.03,214.01,213.95,14.43005995]
[1738644072286,14.46005995,214.01,213.93,14.43005995]
[1738644072483,14.43005995,213.99,213.91,14.43005995]
[1738644072686,14.43005995,213.97,213.89,14.43005995]
[1738644072912,14.43005995,213.97,213.87,10.2239]
[1738644072913,14.43005995,213.95,213.87,24.65395995]
[1738644073109,14.43005995,213.93,213.87,2.0895]
[1738644073419,150.63005995,213.95,213.87,16.51955995]
[1738644075320,150.63005995,213.95,213.82,13.41184853]
[1738644075321,14.43005995,213.91,213.83,14.43005995]
[1738644076332,14.43005995,213.91,213.82,1.9046]